[Event "Championnat du monde jeunes U12"]
[Date "2024.11.18"]
[White "Hallmundarson, Birkir"]
[Black "Italiani, Luca"]
[WhiteElo "1914"]
[BlackElo "1634"]
[Round "4.45"]
[Result "1-0"]
[TimeControl "5400+30"]

1. Nf3 d5 {[%clk 1:30:02]} 2. c4 {[%clk 1:31:21]} 2... Nf6 {[%clk 1:29:56]} 3.
cxd5 {[%clk 1:31:45]} 3... Nxd5 {[%clk 1:30:06]} 4. e4 {[%clk 1:32:11]} 4... Nf6
{[%clk 1:30:28]} 5. Bc4 {[%clk 1:32:34]} 5... e6 {[%clk 1:26:44]} 6. Nc3 {[%clk
1:32:58]} 6... Nc6 {[%clk 1:26:11]} 7. d4 {[%clk 1:32:22]} 7... Bb4 {[%clk
1:25:46]} 8. Bg5 {[%clk 1:32:13]} 8... h6 {[%clk 1:25:25]} 9. Bxf6 {[%clk
1:32:29]} 9... Qxf6 {[%clk 1:25:43]} 10. a3 {[%clk 1:32:32]} 10... Bxc3+ {[%clk
1:25:42]} 11. bxc3 {[%clk 1:32:59]} 11... O-O {[%clk 1:25:37]} 12. O-O {[%clk
1:33:20]} 12... e5 {[%clk 1:25:24]} 13. d5 {[%clk 1:32:26]} 13... Rd8 {[%clk
1:23:17]} 14. Be2 {[%clk 1:24:14]} 14... Ne7 {[%clk 1:22:17]} 15. Qb3 {[%clk
1:22:56]} 15... Ng6 {[%clk 1:21:57]} 16. c4 {[%clk 1:15:29]} 16... Nh4 {[%clk
1:22:09]} 17. Rab1 {[%clk 1:12:01]} 17... Nxf3+ {[%clk 1:21:55]} 18. Bxf3 {[%clk
1:12:08]} 18... Qg6 {[%clk 1:21:43]} 19. Qc3 {[%clk 1:12:29]} 19... Re8 {[%clk
1:17:22]} 20. a4 {[%clk 1:10:04]} 20... c6 {[%clk 1:16:59]} 21. Rfc1 {[%clk
1:09:56]} 21... h5 {[%clk 1:17:08]} 22. Kf1 {[%clk 1:06:07]} 22... h4 {[%clk
1:17:16]} 23. h3 {[%clk 1:06:30]} 23... Rb8 {[%clk 1:10:57]} 24. Qa5 {[%clk
1:02:10]} 24... Ra8 {[%clk 1:05:49]} 25. Rd1 {[%clk 0:59:04]} 25... cxd5 {[%clk
1:03:50]} 26. cxd5 {[%clk 0:58:45]} 26... b6 {[%clk 1:02:28]} 27. Qb5 {[%clk
0:57:52]} 27... Rd8 {[%clk 1:00:54]} 28. Qb4 {[%clk 0:44:13]} 28... Ba6+ {[%clk
1:00:39]} 29. Kg1 {[%clk 0:44:34]} 29... Bc8 {[%clk 1:00:49]} 30. Kh1 {[%clk
0:42:31]} 30... Qh6 {[%clk 0:56:45]} 31. Qe7 {[%clk 0:39:25]} 31... Bd7 {[%clk
0:55:02]} 32. Qxe5 {[%clk 0:32:07]} 32... Bxa4 {[%clk 0:54:51]} 33. Rdc1 {[%clk
0:32:04]} 33... Qd2 {[%clk 0:51:54]} 34. Kg1 {[%clk 0:25:40]} 34... b5 {[%clk
0:49:24]} 35. Bh5 {[%clk 0:23:30]} 35... b4 {[%clk 0:48:04]} 36. Bxf7+ {[%clk
0:21:55]} 36... Kxf7 {[%clk 0:44:09]} 37. Rc7+ {[%clk 0:22:19]} 37... Rd7 {[%clk
0:41:44]} 38. Qe6+ {[%clk 0:22:40]} 38... Kf8 {[%clk 0:41:37]} 39. Rxd7 {[%clk
0:23:04]} 39... Bxd7 {[%clk 0:41:51]} 40. Qxd7 {[%clk 0:23:26]} 40... Qc3 {[%clk
0:40:31]} 41. Qd6+ {[%clk 0:23:47]} 41... Ke8 {[%clk 0:39:12]} 42. Qxb4 {[%clk
0:23:52]} 42... Qxb4 {[%clk 0:38:52]} 43. Rxb4 {[%clk 0:24:21]} 43... Kd7 {[%clk
0:38:35]} 44. e5 {[%clk 0:24:40]} 44... Ke8 {[%clk 0:37:58]} 45. Rxh4 {[%clk
0:25:02]} 45... Ke7 {[%clk 0:37:34]} 46. Ra4 {[%clk 0:25:23]} 46... a5 {[%clk
0:37:40]} 47. f4 {[%clk 0:25:48]} 47... g6 {[%clk 0:37:56]} 48. g4 {[%clk
0:26:09]} 48... Kd7 {[%clk 0:38:07]} 49. f5 {[%clk 0:26:01]} 49... gxf5 {[%clk
0:38:23]} 50. gxf5 {[%clk 0:26:29]} 50... Ke7 {[%clk 0:38:39]} 51. f6+ {[%clk
0:26:42]} 51... Kf7 {[%clk 0:38:47]} 52. Kf2 {[%clk 0:26:59]} 52... Re8 {[%clk
0:38:47]} 53. e6+ {[%clk 0:26:58]} 53... Kxf6 {[%clk 0:39:08]} 54. Rxa5 {[%clk
0:27:25]} 54... Rd8 {[%clk 0:39:15]} 55. Kf3 {[%clk 0:27:48]} 55... Rh8 {[%clk
0:39:18]} 56. Kg4 {[%clk 0:27:54]} 56... Rg8+ {[%clk 0:39:37]} 57. Kf4 {[%clk
0:28:20]} 57... Rh8 {[%clk 0:39:55]} 58. Ra7 {[%clk 0:27:49]} 58... Rh4+ {[%clk
0:38:54]} 59. Kg3 {[%clk 0:28:09]} 59... Re4 {[%clk 0:38:25]} 60. Rf7+ {[%clk
0:28:25]} 60... Kg6 {[%clk 0:37:54]} 61. h4 {[%clk 0:27:39]} 61... Re3+ {[%clk
0:35:56]} 62. Kf4 {[%clk 0:28:01]} 62... Re1 {[%clk 0:34:50]} 63. h5+ {[%clk
0:27:13]} 63... Kxh5 {[%clk 0:35:04]} 64. Kf5 {[%clk 0:27:33]} 64... Rf1+ {[%clk
0:35:23]} 65. Ke5 {[%clk 0:27:57]} 65... Re1+ {[%clk 0:35:40]} 66. Kd6 {[%clk
0:28:20]} 66... Kg6 {[%clk 0:35:48]} 67. Rf2 {[%clk 0:28:46]} 67... Re3 {[%clk
0:34:24]} 68. e7 {[%clk 0:29:09]} 68... Re4 {[%clk 0:33:30]} 69. Kd7 {[%clk
0:29:27]} 69... Kg5 {[%clk 0:33:24]} 70. e8=Q {[%clk 0:29:45]} 70... Rxe8 {[%clk
0:33:47]} 71. Kxe8 {[%clk 0:30:09]} 71... Kg4 {[%clk 0:34:10]} 72. d6 {[%clk
0:30:34]} 72... Kg3 {[%clk 0:34:36]} 73. Rf7 {[%clk 0:31:03]} 73... Kg4 {[%clk
0:34:58]} 74. d7 {[%clk 0:31:28]} 74... Kg5 {[%clk 0:35:24]} 75. d8=Q+ Kg6
{[%clk 0:35:49]} 76. Qd5 {[%clk 0:31:49]} 76... Kh6 {[%clk 0:35:58]} 77. Qe5
{[%clk 0:32:15]} 77... Kg6 {[%clk 0:36:18]} 78. Qf5+ {[%clk 0:32:44]} 78... Kh6
{[%clk 0:36:29]} 79. Rh7# {[%clk 0:33:09]} 1-0

[Variant "Standard"]
[Site "Europe Echecs"]

[Event "Championnat du monde jeunes U12"]
[Date "2024.11.18"]
[White "To, Nam Long"]
[Black "Chen, Jun-Wei"]
[WhiteElo "1608"]
[BlackElo "1907"]
[Round "4.46"]
[Result "0-1"]
[TimeControl "5400+30"]

1. d4 {[%clk 1:30:57]} 1... Nf6 {[%clk 1:30:51]} 2. Bf4 {[%clk 1:30:48]} 2... d5
{[%clk 1:31:07]} 3. e3 {[%clk 1:31:06]} 3... c5 {[%clk 1:31:23]} 4. c3 {[%clk
1:31:31]} 4... Nc6 {[%clk 1:31:38]} 5. Nd2 {[%clk 1:31:19]} 5... e6 {[%clk
1:31:51]} 6. Ngf3 {[%clk 1:31:40]} 6... Be7 {[%clk 1:31:54]} 7. Bd3 {[%clk
1:31:57]} 7... Nh5 {[%clk 1:31:38]} 8. Bg3 {[%clk 1:31:19]} 8... Nxg3 {[%clk
1:30:56]} 9. hxg3 {[%clk 1:31:42]} 9... h6 {[%clk 1:30:19]} 10. a4 {[%clk
1:30:54]} 10... Bd7 {[%clk 1:27:46]} 11. Ne5 {[%clk 1:28:50]} 11... Nxe5 {[%clk
1:27:04]} 12. dxe5 {[%clk 1:29:12]} 12... Qc7 {[%clk 1:26:03]} 13. f4 {[%clk
1:29:24]} 13... c4 {[%clk 1:23:22]} 14. Bc2 {[%clk 1:29:39]} 14... Qb6 {[%clk
1:23:50]} 15. Kf2 {[%clk 1:28:12]} 15... Qxb2 {[%clk 1:23:00]} 16. Rb1 {[%clk
1:27:09]} 16... Qxc3 {[%clk 1:23:26]} 17. Rxb7 {[%clk 1:26:22]} 17... Bc5 {[%clk
1:23:53]} 18. Re1 {[%clk 1:25:56]} 18... O-O-O {[%clk 1:21:37]} 19. Rb1 {[%clk
1:23:57]} 19... Bc6 {[%clk 1:19:50]} 20. Nf1 {[%clk 1:20:09]} 20... d4 {[%clk
1:19:52]} 21. Qe2 {[%clk 1:17:33]} 21... d3 {[%clk 1:19:08]} 22. Bxd3 {[%clk
1:17:19]} 22... cxd3 {[%clk 1:19:15]} 23. Qd2 {[%clk 1:17:05]} 23... Qxd2+
{[%clk 1:19:00]} 24. Nxd2 {[%clk 1:17:29]} 24... Bxa4 {[%clk 1:18:52]} 25. Rec1
{[%clk 1:16:58]} 25... Bc2 {[%clk 1:19:18]} 26. Rb5 {[%clk 1:16:38]} 26... Rd5
{[%clk 1:18:27]} 27. Kf3 {[%clk 1:15:16]} 27... Ba3 {[%clk 1:16:39]} 28. Rxd5
{[%clk 1:14:38]} 28... exd5 {[%clk 1:15:39]} 29. Ra1 {[%clk 1:14:58]} 29... Bb4
{[%clk 1:16:04]} 30. Nf1 {[%clk 1:13:41]} 30... a5 {[%clk 1:16:23]} 31. g4
{[%clk 1:13:01]} 31... a4 {[%clk 1:16:14]} 32. g3 {[%clk 1:12:52]} 32... a3
{[%clk 1:15:58]} 33. f5 {[%clk 1:12:42]} 33... Bb3 {[%clk 1:15:56]} 34. Rc1+
{[%clk 1:12:00]} 34... Kd7 {[%clk 1:16:18]} 35. e4 {[%clk 1:11:12]} 35... d4
{[%clk 1:16:06]} 36. Rb1 {[%clk 1:09:59]} 36... a2 {[%clk 1:16:10]} 37. Ra1
{[%clk 1:09:07]} 37... Bc3 {[%clk 1:16:33]} 0-1

[Variant "Standard"]
[Site "Europe Echecs"]

[Event "Championnat du monde jeunes U12"]
[Date "2024.11.18"]
[White "Ivarlac, Vladislav"]
[Black "Mintz, Nathan"]
[WhiteElo "1867"]
[BlackElo "1633"]
[Round "4.47"]
[Result "1-0"]
[TimeControl "5400+30"]

1. Nf3 {[%clk 1:30:58]} 1... c5 {[%clk 1:30:54]} 2. g3 {[%clk 1:31:21]} 2... Nc6
{[%clk 1:31:14]} 3. Bg2 {[%clk 1:31:38]} 3... g6 {[%clk 1:31:34]} 4. d4 {[%clk
1:30:36]} 4... cxd4 {[%clk 1:31:56]} 5. Nxd4 {[%clk 1:31:01]} 5... Bg7 {[%clk
1:32:07]} 6. c3 {[%clk 1:31:00]} 6... Nf6 {[%clk 1:32:08]} 7. O-O {[%clk
1:29:53]} 7... O-O {[%clk 1:32:21]} 8. e4 {[%clk 1:28:54]} 8... d6 {[%clk
1:28:21]} 9. Na3 {[%clk 1:25:04]} 9... e5 {[%clk 1:20:04]} 10. Ndb5 {[%clk
1:20:48]} 10... Ne8 {[%clk 1:11:00]} 11. Nc4 {[%clk 1:17:27]} 11... b6 {[%clk
1:03:41]} 12. a4 {[%clk 1:09:08]} 12... Ba6 {[%clk 1:02:02]} 13. b3 {[%clk
1:07:33]} 13... Rc8 {[%clk 0:55:02]} 14. Ba3 {[%clk 1:06:40]} 14... f5 {[%clk
0:53:32]} 15. exf5 {[%clk 1:06:02]} 15... Kh8 {[%clk 0:46:42]} 16. fxg6 {[%clk
1:05:45]} 16... hxg6 {[%clk 0:46:45]} 17. Bh3 {[%clk 1:05:10]} 17... Ra8 {[%clk
0:44:21]} 18. Ncxd6 {[%clk 1:05:02]} 18... Nxd6 {[%clk 0:44:20]} 19. Qxd6 {[%clk
1:04:55]} 19... Qxd6 {[%clk 0:43:51]} 20. Bxd6 {[%clk 1:03:26]} 20... Rfd8
{[%clk 0:41:02]} 21. Bg2 {[%clk 1:02:50]} 21... Rac8 {[%clk 0:40:19]} 22. Bc7
{[%clk 1:02:07]} 22... Bxb5 {[%clk 0:37:16]} 23. axb5 {[%clk 1:02:29]} 23...
Rxc7 {[%clk 0:37:19]} 24. bxc6 {[%clk 1:02:52]} 24... Rd3 {[%clk 0:36:04]} 25.
Rfd1 {[%clk 1:02:31]} 25... Rxc3 {[%clk 0:33:08]} 26. Rd7 {[%clk 1:02:52]} 26...
Rc8 {[%clk 0:32:45]} 27. Raxa7 {[%clk 1:03:04]} 27... Rc1+ {[%clk 0:31:38]} 28.
Bf1 {[%clk 1:03:28]} 28... Bf6 {[%clk 0:31:00]} 29. c7 {[%clk 1:03:26]} 29...
Kg8 {[%clk 0:19:34]} 30. Kg2 {[%clk 1:03:51]} 30... Kf8 {[%clk 0:18:58]} 31. Ba6
{[%clk 1:04:02]} 31... Ra1 {[%clk 0:18:20]} 32. Bxc8 {[%clk 1:04:26]} 32... Rxa7
{[%clk 0:18:28]} 33. Bb7 {[%clk 1:04:49]} 33... Be7 {[%clk 0:16:54]} 34. c8=Q+
{[%clk 1:05:12]} 34... Kf7 {[%clk 0:17:02]} 35. Bd5+ {[%clk 1:05:33]} 35... Kf6
{[%clk 0:17:13]} 36. Qh8+ {[%clk 1:05:53]} 36... Kf5 {[%clk 0:17:18]} 37. Rxa7
{[%clk 1:06:04]} 37... Bf6 {[%clk 0:16:01]} 38. g4+ {[%clk 1:06:28]} 38... Kg5
{[%clk 0:15:59]} 39. h4+ {[%clk 1:06:47]} 39... Kxg4 {[%clk 0:15:51]} 40. Qxf6
{[%clk 1:07:12]} 40... e4 {[%clk 0:15:45]} 41. Qg5# {[%clk 1:07:35]} 1-0

[Variant "Standard"]
[Site "Europe Echecs"]

[Event "Championnat du monde jeunes U12"]
[Date "2024.11.18"]
[White "Zutautas, Mantas"]
[Black "Anagnostopoulos, Panagiotis"]
[WhiteElo "1540"]
[BlackElo "1848"]
[Round "4.48"]
[Result "0-1"]
[TimeControl "5400+30"]

1. d4 {[%clk 1:30:58]} 1... Nf6 {[%clk 1:30:46]} 2. Nf3 {[%clk 1:31:16]} 2... g6
{[%clk 1:31:00]} 3. Bf4 {[%clk 1:31:39]} 3... Bg7 {[%clk 1:31:17]} 4. e3 {[%clk
1:32:02]} 4... O-O {[%clk 1:31:35]} 5. Be2 {[%clk 1:32:22]} 5... d6 {[%clk
1:31:36]} 6. h3 {[%clk 1:32:40]} 6... Nfd7 {[%clk 1:31:44]} 7. O-O {[%clk
1:32:48]} 7... e5 {[%clk 1:31:50]} 8. dxe5 {[%clk 1:30:44]} 8... dxe5 {[%clk
1:32:10]} 9. Bg5 {[%clk 1:23:45]} 9... Qe8 {[%clk 1:29:14]} 10. c3 {[%clk
1:22:49]} 10... Nc6 {[%clk 1:28:36]} 11. Bb5 {[%clk 1:18:43]} 11... Nb6 {[%clk
1:27:04]} 12. Re1 {[%clk 1:17:46]} 12... a6 {[%clk 1:25:43]} 13. Bf1 {[%clk
1:17:57]} 13... Be6 {[%clk 1:24:55]} 14. Nbd2 {[%clk 1:16:08]} 14... f5 {[%clk
1:23:36]} 15. Nb3 {[%clk 1:14:59]} 15... Nd7 {[%clk 1:19:30]} 16. Nfd2 {[%clk
1:07:51]} 16... Qf7 {[%clk 1:18:17]} 17. f4 {[%clk 1:05:46]} 17... h6 {[%clk
1:14:59]} 18. Bh4 {[%clk 1:04:33]} 18... e4 {[%clk 1:10:25]} 19. g4 {[%clk
1:00:24]} 19... Bf6 {[%clk 1:07:55]} 20. Bxf6 {[%clk 0:59:47]} 20... Qxf6 {[%clk
1:08:15]} 21. Bc4 {[%clk 0:57:24]} 21... Rad8 {[%clk 1:06:50]} 22. Qe2 {[%clk
0:50:21]} 22... Bxc4 {[%clk 1:05:50]} 23. Nxc4 {[%clk 0:50:06]} 23... b5 {[%clk
1:04:45]} 24. Na3 {[%clk 0:49:31]} 24... Kh7 {[%clk 1:03:23]} 25. Nc2 {[%clk
0:47:01]} 25... Nb6 {[%clk 1:01:00]} 26. Ncd4 {[%clk 0:45:27]} 26... Nxd4 {[%clk
1:00:22]} 27. Nxd4 {[%clk 0:45:05]} 27... c5 {[%clk 1:00:06]} 28. Nb3 {[%clk
0:44:57]} 28... Na4 {[%clk 0:59:31]} 29. Rab1 {[%clk 0:31:10]} 29... Rd3 {[%clk
0:59:09]} 30. Rec1 {[%clk 0:29:40]} 30... Rfd8 {[%clk 0:58:11]} 31. c4 {[%clk
0:27:17]} 31... b4 {[%clk 0:56:09]} 32. Rc2 {[%clk 0:25:20]} 32... R8d6 {[%clk
0:55:06]} 33. Nd2 {[%clk 0:21:53]} 33... Qd8 {[%clk 0:54:03]} 34. Rd1 {[%clk
0:20:04]} 34... a5 {[%clk 0:53:03]} 35. Kf1 {[%clk 0:20:06]} 35... Qf6 36. Rb1
{[%clk 0:20:17]} 36... Qh4 {[%clk 0:52:26]} 37. Kg2 {[%clk 0:20:40]} 37... Qe7
{[%clk 0:52:12]} 38. Kg3 {[%clk 0:20:50]} 38... Rxe3+ {[%clk 0:52:04]} 39. Qxe3
{[%clk 0:20:42]} 39... Rd3 {[%clk 0:52:31]} 40. Nf1 {[%clk 0:20:09]} 40... g5
{[%clk 0:52:22]} 41. fxg5 {[%clk 0:18:25]} 41... Qe5+ {[%clk 0:52:26]} 42. Kg2
{[%clk 0:18:16]} 42... Rxe3 {[%clk 0:52:49]} 43. Nxe3 {[%clk 0:18:37]} 43... f4
{[%clk 0:53:09]} 44. Nd5 {[%clk 0:17:55]} 44... f3+ {[%clk 0:53:22]} 45. Kg1
{[%clk 0:17:39]} 45... Qg3+ {[%clk 0:53:15]} 46. Kf1 {[%clk 0:17:13]} 46...
Qxh3+ {[%clk 0:53:30]} 47. Kg1 {[%clk 0:17:38]} 47... Qxg4+ {[%clk 0:53:50]} 48.
Kf1 {[%clk 0:17:49]} 48... Qh3+ {[%clk 0:53:36]} 49. Kg1 {[%clk 0:18:09]} 49...
f2+ {[%clk 0:53:56]} 50. Rxf2 {[%clk 0:18:15]} 50... Qd3 {[%clk 0:44:33]} 51.
Rf7+ {[%clk 0:16:55]} 51... Kg8 {[%clk 0:44:37]} 52. Rbf1 {[%clk 0:15:47]} 52...
Qg3+ {[%clk 0:44:58]} 53. Kh1 {[%clk 0:15:39]} 53... Qh4+ {[%clk 0:45:18]} 54.
Kg1 {[%clk 0:15:59]} 54... Qxg5+ {[%clk 0:45:43]} 55. Kh1 {[%clk 0:16:22]} 55...
Qh5+ {[%clk 0:46:06]} 56. Kg2 {[%clk 0:16:26]} 56... Qg6+ {[%clk 0:46:23]} 57.
Kh2 {[%clk 0:16:34]} 57... Qxf7 {[%clk 0:46:13]} 58. Rxf7 {[%clk 0:16:40]} 58...
Kxf7 {[%clk 0:46:39]} 59. b3 {[%clk 0:12:26]} 59... Nc3 {[%clk 0:46:50]} 60. Nb6
{[%clk 0:12:51]} 60... Ke7 {[%clk 0:46:46]} 61. Kg3 {[%clk 0:09:34]} 61... Nxa2
{[%clk 0:46:49]} 62. Kf4 {[%clk 0:05:28]} 62... Nc3 {[%clk 0:46:40]} 63. Nc8+
{[%clk 0:04:53]} 63... Kd7 {[%clk 0:46:56]} 64. Nb6+ {[%clk 0:05:09]} 64... Kc7
{[%clk 0:47:16]} 65. Nd5+ {[%clk 0:05:23]} 65... Nxd5+ {[%clk 0:47:42]} 66. cxd5
{[%clk 0:05:48]} 66... Kd6 {[%clk 0:48:04]} 67. Kxe4 {[%clk 0:06:09]} 67... h5
{[%clk 0:48:29]} 0-1

[Variant "Standard"]
[Site "Europe Echecs"]

[Event "Championnat du monde jeunes U12"]
[Date "2024.11.18"]
[White "Petrovski, Nikola"]
[Black "Berishvili, Davit"]
[WhiteElo "1829"]
[BlackElo "1578"]
[Round "4.49"]
[Result "1-0"]
[TimeControl "5400+30"]

1. e4 {[%clk 1:30:00]} 1... e5 {[%clk 1:30:56]} 2. Nf3 {[%clk 1:30:25]} 2... Nc6
{[%clk 1:31:23]} 3. d4 {[%clk 1:30:24]} 3... exd4 {[%clk 1:31:47]} 4. Bc4 {[%clk
1:30:50]} 4... Nf6 {[%clk 1:32:08]} 5. O-O {[%clk 1:31:12]} 5... Be7 {[%clk
1:32:27]} 6. Re1 {[%clk 1:27:45]} 6... d6 {[%clk 1:32:06]} 7. Nxd4 {[%clk
1:27:46]} 7... Nxd4 {[%clk 1:31:40]} 8. Qxd4 {[%clk 1:28:10]} 8... O-O {[%clk
1:31:30]} 9. Nc3 {[%clk 1:23:56]} 9... Kh8 {[%clk 1:29:50]} 10. b3 {[%clk
1:14:31]} 10... Be6 {[%clk 1:28:57]} 11. Bb2 {[%clk 1:14:32]} 11... Bxc4 {[%clk
1:28:16]} 12. Qxc4 {[%clk 1:14:55]} 12... c6 {[%clk 1:27:15]} 13. Rad1 {[%clk
1:10:05]} 13... Nd7 {[%clk 1:26:28]} 14. Qd3 {[%clk 1:05:37]} 14... Qc7 {[%clk
1:24:36]} 15. Qg3 {[%clk 1:02:33]} 15... Ne5 {[%clk 1:24:13]} 16. Kh1 {[%clk
0:57:14]} 16... Rad8 {[%clk 1:22:34]} 17. Ne2 {[%clk 0:46:29]} 17... f6 {[%clk
1:13:21]} 18. Nd4 {[%clk 0:45:09]} 18... Qc8 {[%clk 1:13:16]} 19. f4 {[%clk
0:40:44]} 19... c5 {[%clk 1:12:54]} 20. Ne2 {[%clk 0:39:42]} 20... Nf7 {[%clk
1:09:27]} 21. Nc3 {[%clk 0:32:53]} 21... Nh6 {[%clk 1:08:41]} 22. Nd5 {[%clk
0:32:57]} 22... Rf7 {[%clk 1:08:41]} 23. f5 {[%clk 0:31:59]} 23... Ng8 {[%clk
1:07:56]} 24. Qh4 {[%clk 0:29:14]} 24... c4 {[%clk 1:04:02]} 25. bxc4 {[%clk
0:25:49]} 25... Qxc4 {[%clk 1:04:23]} 26. Qh5 {[%clk 0:26:13]} 26... Rdf8 {[%clk
1:04:36]} 27. Nf4 {[%clk 0:25:54]} 27... Nh6 {[%clk 1:04:44]} 28. Ng6+ {[%clk
0:21:07]} 28... Kg8 {[%clk 1:02:44]} 29. Nxf8 {[%clk 0:21:28]} 29... Rxf8 {[%clk
1:03:13]} 30. Qf3 {[%clk 0:19:32]} 30... Qxc2 {[%clk 1:02:19]} 31. Qb3+ {[%clk
0:19:57]} 31... Qxb3 {[%clk 1:02:46]} 32. axb3 {[%clk 0:20:19]} 32... Ng4 {[%clk
1:03:12]} 33. Bd4 {[%clk 0:19:47]} 33... b6 {[%clk 1:03:21]} 34. Ra1 {[%clk
0:17:23]} 34... a5 {[%clk 1:03:47]} 35. Rec1 {[%clk 0:13:24]} 35... Rb8 {[%clk
1:02:15]} 36. Rc6 {[%clk 0:12:50]} 36... Bd8 {[%clk 1:02:03]} 37. Rac1 {[%clk
0:12:33]} 37... Kf7 {[%clk 1:02:06]} 38. Rxd6 {[%clk 0:12:07]} 38... Ke7 {[%clk
1:02:13]} 39. Re6+ {[%clk 0:12:17]} 39... Kf7 {[%clk 1:02:22]} 40. h3 {[%clk
0:12:20]} 40... Nh6 {[%clk 1:02:39]} 41. Rcc6 {[%clk 0:11:55]} 41... b5 {[%clk
1:03:06]} 42. Bb6 {[%clk 0:09:46]} 42... Bxb6 {[%clk 1:03:19]} 43. Rxb6 {[%clk
0:10:09]} 43... Rxb6 {[%clk 1:03:46]} 44. Rxb6 {[%clk 0:10:29]} 44... a4 {[%clk
1:04:15]} 45. b4 {[%clk 0:10:24]} 45... a3 {[%clk 1:04:41]} 46. Rxb5 {[%clk
0:10:49]} 46... Ng8 {[%clk 1:05:07]} 47. Ra5 {[%clk 0:11:07]} 47... Ne7 {[%clk
1:05:33]} 48. Rxa3 {[%clk 0:11:26]} 48... Nc6 {[%clk 1:06:01]} 49. b5 {[%clk
0:11:30]} 49... Nd4 {[%clk 1:06:27]} 50. b6 {[%clk 0:11:39]} 50... Nc6 {[%clk
1:06:54]} 51. b7 {[%clk 0:11:08]} 51... h6 {[%clk 1:07:17]} 52. Ra8 {[%clk
0:11:02]} 52... h5 {[%clk 1:07:42]} 53. b8=Q Nxb8 {[%clk 1:08:02]} 54. Rxb8
{[%clk 0:11:35]} 54... g5 {[%clk 1:08:24]} 55. Rb7+ {[%clk 0:11:49]} 55... Kg8
{[%clk 1:08:49]} 56. Kh2 {[%clk 0:11:47]} 56... h4 {[%clk 1:09:12]} 57. g3
{[%clk 0:12:05]} 57... hxg3+ {[%clk 1:09:37]} 58. Kxg3 {[%clk 0:12:16]} 58... g4
{[%clk 1:10:04]} 59. Kxg4 {[%clk 0:12:37]} 1-0

[Variant "Standard"]
[Site "Europe Echecs"]

[Event "Championnat du monde jeunes U12"]
[Date "2024.11.18"]
[White "Kozhedub, Ivan"]
[Black "Macia Tell, Dario"]
[WhiteElo "1826"]
[BlackElo "1520"]
[Round "4.50"]
[Result "1-0"]
[TimeControl "5400+30"]

1. e4 {[%clk 1:30:58]} 1... c5 {[%clk 1:30:54]} 2. Nc3 {[%clk 1:31:25]} 2... d6
{[%clk 1:31:20]} 3. g3 {[%clk 1:31:52]} 3... Nc6 {[%clk 1:31:38]} 4. Bg2 {[%clk
1:32:18]} 4... g6 {[%clk 1:32:03]} 5. d3 {[%clk 1:32:45]} 5... Bg7 {[%clk
1:32:27]} 6. Be3 {[%clk 1:33:11]} 6... Nd4 {[%clk 1:32:52]} 7. Qd2 {[%clk
1:33:00]} 7... e6 {[%clk 1:32:51]} 8. Nge2 {[%clk 1:33:12]} 8... Nxe2 {[%clk
1:33:15]} 9. Qxe2 {[%clk 1:33:36]} 9... Ne7 {[%clk 1:33:36]} 10. O-O {[%clk
1:33:58]} 10... O-O {[%clk 1:34:00]} 11. Qd2 {[%clk 1:34:17]} 11... Nc6 {[%clk
1:34:05]} 12. Bh6 {[%clk 1:34:20]} 12... a6 {[%clk 1:34:06]} 13. Bxg7 {[%clk
1:34:35]} 13... Kxg7 {[%clk 1:34:29]} 14. f4 {[%clk 1:34:37]} 14... f5 {[%clk
1:34:49]} 15. Rfe1 {[%clk 1:29:24]} 15... Bd7 {[%clk 1:34:42]} 16. exf5 {[%clk
1:28:53]} 16... gxf5 {[%clk 1:34:49]} 17. Ne2 {[%clk 1:25:13]} 17... Qb6 {[%clk
1:35:00]} 18. Rad1 {[%clk 1:23:01]} 18... d5 {[%clk 1:33:35]} 19. Kh1 {[%clk
1:12:06]} 19... Rae8 {[%clk 1:31:18]} 20. Ng1 {[%clk 1:10:12]} 20... Qb4 {[%clk
1:30:10]} 21. c3 {[%clk 1:02:41]} 21... Qb6 {[%clk 1:30:05]} 22. Nf3 {[%clk
1:01:13]} 22... h6 {[%clk 1:30:08]} 23. Qf2 {[%clk 0:57:11]} 23... d4 {[%clk
1:29:42]} 24. Rd2 {[%clk 0:56:05]} 24... Rf7 {[%clk 1:28:50]} 25. Rde2 {[%clk
0:56:03]} 25... Rfe7 {[%clk 1:29:11]} 26. Nh4 {[%clk 0:56:09]} 26... Qd8 {[%clk
1:29:07]} 27. Kg1 {[%clk 0:56:00]} 27... b5 {[%clk 1:25:44]} 28. Bxc6 {[%clk
0:55:11]} 28... Bxc6 {[%clk 1:26:09]} 29. Re5 {[%clk 0:55:40]} 29... Qd6 {[%clk
1:17:13]} 30. Qe2 {[%clk 0:55:03]} 30... Rf7 {[%clk 1:14:41]} 31. Rxe6 {[%clk
0:36:02]} 31... Rxe6 {[%clk 1:15:05]} 32. Qxe6 {[%clk 0:36:27]} 32... Qxe6
{[%clk 1:15:29]} 33. Rxe6 {[%clk 0:36:53]} 33... dxc3 {[%clk 1:15:38]} 34. bxc3
{[%clk 0:37:16]} 34... Bb7 {[%clk 1:15:52]} 35. Kf2 {[%clk 0:36:57]} 35... Kh7
{[%clk 1:11:11]} 36. Nxf5 {[%clk 0:35:30]} 36... Bd5 {[%clk 1:08:19]} 37. Rxh6+
{[%clk 0:35:42]} 37... Kg8 {[%clk 1:08:39]} 38. Ne3 {[%clk 0:35:48]} 38... Bxa2
{[%clk 1:09:01]} 39. Rxa6 {[%clk 0:36:13]} 39... Bb3 {[%clk 1:09:08]} 40. c4
{[%clk 0:35:51]} 40... b4 {[%clk 1:09:34]} 41. Ke2 {[%clk 0:35:51]} 41... Rd7
{[%clk 1:08:49]} 42. h4 {[%clk 0:35:31]} 42... Re7 {[%clk 1:08:09]} 43. Kd2
{[%clk 0:35:41]} 43... Kg7 {[%clk 1:08:10]} 44. Nf5+ {[%clk 0:36:06]} 44... Kf7
{[%clk 1:08:34]} 45. Nxe7 {[%clk 0:36:32]} 45... Kxe7 {[%clk 1:08:57]} 46. h5
{[%clk 0:36:55]} 46... Kf7 {[%clk 1:09:20]} 47. h6 {[%clk 0:37:05]} 47... Kg8
{[%clk 1:09:47]} 48. Ra7 {[%clk 0:37:27]} 48... Kh8 {[%clk 1:10:01]} 49. h7
{[%clk 0:37:46]} 49... Bxc4 {[%clk 1:09:41]} 50. Ra8+ {[%clk 0:38:11]} 50...
Kxh7 {[%clk 1:10:01]} 51. dxc4 {[%clk 0:38:38]} 1-0

[Variant "Standard"]
[Site "Europe Echecs"]